[Event "ESP-ch Teams Honor 2024"]
[Site "Melilla"]
[Date "2024.10.15"]
[Round "4.9"]
[White "Salgado Lopez, Ivan"]
[Black "Henderson de La Fuente, Lance"]
[Result "1-0"]
[ECO "B47"]
[WhiteElo "2609"]
[BlackElo "2525"]
[Annotator "TA"]
[PlyCount "133"]
[EventDate "2024.10.11"]
[EventType "team-tourn"]
[EventCountry "ESP"]
[SourceTitle "playchess.com"]
[Source "ChessBase"]
[SourceQuality "1"]
[WhiteTeam "Casablanca"]
[BlackTeam "Solvay"]
[TimeControl "5400+30"]

{[%evp 42,133,0,0,16,13,10,13,25,19,8,0,70,67,63,56,53,52,60,25,34,18,62,0,0,0,0,0,0,0,29,19,27,29,29,53,78,82,84,70,139,138,138,116,152,111,234,229,377,363,353,322,845,847,847,720,29951,29951,29958,29961,29962,29966,29966,29964,29967,29968,29968,29969,29966,29968,29968,29965,29972,29973,29973,315,315,315,29976,29977,29977,29978,29978,29979,29979,29980,29980,29981,29981,29982,29982,29983,29986,29987]} 1. e4 {[%emt 0:01:33]} c5 {[%emt 0:01:02]} 2. Nf3 {[%emt 0:00:28]} e6 {[%emt 0:00:37]} 3. d4 {[%emt 0:01:08]} cxd4 {[%emt 0:00:24]} 4. Nxd4 {[%emt 0:00:07]} Nc6 {[%emt 0:00:06]} 5. Nc3 {[%emt 0:00:44]} Qc7 {[%emt 0:00:43]} 6. Ncb5 {[%emt 0:00:51] B47: Sicilian: Taimanov: 5 Nc3 Qc7 6 f4, 6 g3 and 6 Be2.} Qb8 {[%emt 0:01:56]} 7. Bd3 {[%emt 0:00:32]} a6 {[%emt 0:03:11]} 8. Nxc6 {[%emt 0:00:40]} bxc6 {[%emt 0:00:22]} 9. Nd4 {[%emt 0:00:11]} e5 {[%emt 0:02:56]} 10. Nf3 $146 {[%emt 0:03:26]} ({Predecessor:} 10. Ne2 Bc5 11. O-O Ne7 12. Kh1 Ng6 13. f4 exf4 14. Nxf4 Ne5 15. Nh5 O-O 16. Qe1 {1-0 Lobanov,S (2536)-Sankalp,G (2502) Yerevan op-A 4th 2022 (8)}) 10... Nf6 {[%emt 0:00:54]} 11. O-O {[%emt 0:00:15]} Bc5 {[%emt 0:04:28]} 12. Bg5 {[%emt 0:06:17]} Be7 {[%emt 0:05:26]} 13. Rb1 {[%emt 0:03:54]} h6 {[%emt 0:01:18]} 14. Bh4 {[%emt 0:04:07]} d6 {[%emt 0:04:12]} 15. c4 {[%emt 0:03:00]} c5 {[%emt 0:04:12]} 16. Nd2 {[%emt 0:08:56]} Nh7 {[%emt 0:21:03]} 17. Bg3 {[%emt 0:02:14]} Nf8 {[%emt 0:02:44]} 18. f4 {[%emt 0:00:48]} exf4 {[%emt 0:00:34]} 19. Rxf4 {[%emt 0:02:10]} Be6 {[%emt 0:00:31]} 20. Nf1 {[%emt 0:17:57]} Ng6 {[%emt 0:04:58]} 21. Rf2 {[%emt 0:00:09]} h5 {[%emt 0:07:25]} 22. h3 {[%emt 0:01:28]} h4 {[%emt 0:00:59]} (22... Bf6 $5) 23. Bh2 {[%emt 0:00:07]} Bf6 {[%emt 0:01:56]} 24. e5 {[%emt 0:03:24]} Nxe5 {[%emt 0:01:56]} 25. Be4 {[%emt 0:00:17]} Ra7 {[%emt 0:00:48]} 26. Ne3 {[%emt 0:00:13]} Bg5 {[%emt 0:01:32]} (26... Bxc4 $2 {loses.} 27. Nxc4 Nxc4 28. Rxf6 (28. Qa4+ Kd8 $18) 28... gxf6 29. Qa4+ Kf8 30. Qxc4 $18) (26... Qd8 $11) 27. Nf5 $14 {[%emt 0:01:56]} Bxf5 $1 {[%emt 0:01:29]} 28. Rxf5 {[%emt 0:01:08]} Be3+ {[%emt 0:03:01]} 29. Kh1 {[%emt 0:00:12]} g6 $1 {[%emt 0:02:01]} 30. Rf1 {[%emt 0:03:43]} O-O {[%emt 0:01:52]} 31. Bd5 {[%emt 0:00:34]} Re7 {[%emt 0:06:58]} 32. Qa4 {[%emt 0:03:47]} (32. b4 $14 cxb4 33. Qe1) 32... Qb6 $11 {[%emt 0:05:21]} 33. b4 {[%emt 0:04:50]} cxb4 {[%emt 0:02:38]} 34. Rxb4 {[%emt 0:00:29]} Qc5 {[%emt 0:00:54]} 35. Rb3 {[%emt 0:04:06]} Kg7 {[%emt 0:03:27]} 36. Qxa6 {[%emt 0:00:46]} Bd4 {[%emt 0:03:45]} 37. Rb7 {[%emt 0:02:40]} Rxb7 {[%emt 0:00:37]} 38. Qxb7 {[%emt 0:00:06]} Qa7 {[%emt 0:00:08]} 39. Qxa7 {[%emt 0:00:22]} Bxa7 {[%emt 0:00:03]} 40. a4 {[%emt 0:00:16]} f5 {[%emt 0:01:21]} (40... Bc5 $14) 41. a5 $16 {[%emt 0:00:42]} Rc8 {[%emt 0:00:33]} 42. Rb1 {[%emt 0:07:18]} Kf6 {[%emt 0:00:27]} 43. Rb7 {[%emt 0:01:38]} Be3 {[%emt 0:00:15]} (43... Bd4 $16) 44. Bxe5+ $1 $18 {[%emt 0:03:14]} ({Not} 44. a6 Nxc4 45. Bg1 Ke5 $14) 44... Kxe5 {[%emt 0:00:32]} (44... dxe5 {might work better.} 45. a6 Kg5) 45. a6 {[%emt 0:00:16]} Kf4 {[%emt 0:00:18] [#]} 46. Re7 $1 {[%emt 0:00:45]} Rb8 $2 {[%emt 0:01:04] [#]} (46... Bf2 47. a7 Bxa7) 47. Rxe3 $1 $18 {[%emt 0:00:28]} Rb1+ {[%emt 0:00:15]} 48. Kh2 {[%emt 0:00:05]} Kxe3 {[%emt 0:00:04]} 49. a7 {[%emt 0:00:09]} Ra1 {[%emt 0:00:10]} 50. a8=Q {[%emt 0:00:08]} ({And not} 50. a8=B Kf4 $11) 50... Rxa8 {[%emt 0:00:05]} 51. Bxa8 {[%emt 0:00:06]} Kf2 {[%emt 0:00:04]} 52. Bd5 {[%emt 0:01:05]} g5 {[%emt 0:00:34]} 53. Be6 {[%emt 0:00:14]} f4 {[%emt 0:00:09]} 54. Bd5 {[%emt 0:01:09]} Kf1 {[%emt 0:00:05]} 55. Bc6 {[%emt 0:01:13]} Kf2 {[%emt 0:00:10]} 56. Bb5 {[%emt 0:00:53]} f3 {[%emt 0:01:08]} 57. Bc6 {[%emt 0:00:21]} fxg2 {[%emt 0:00:47]} 58. Bxg2 {[%emt 0:00:13]} Ke3 {[%emt 0:00:24]} 59. Kg1 {[%emt 0:00:14]} Ke2 $2 {[%emt 0:02:16]} (59... Kd4 $18 60. Bd5 Ke3) 60. Bd5 {[%emt 0:00:23]} Ke3 {[%emt 0:00:13]} 61. Kf1 {[%emt 0:00:17]} Kf4 {[%emt 0:00:31]} 62. Kf2 {[%emt 0:01:04]} g4 {[%emt 0:00:11]} 63. hxg4 {[%emt 0:00:12]} Kxg4 {[%emt 0:00:11]} 64. Ke3 {[%emt 0:00:15]} Kf5 {[%emt 0:00:16]} 65. Bg2 {[%emt 0:00:24]} Ke5 {[%emt 0:00:23]} 66. Kd3 {[%emt 0:00:14]} h3 {[%emt 0:01:42]} 67. Bxh3 {[%emt 0:00:15]} 1-0

[Event "ESP-ch Teams Honor 2024"]
[Site "Melilla"]
[Date "2024.10.15"]
[Round "4.10"]
[White "Korneev, Oleg"]
[Black "Illescas Cordoba, Miguel"]
[Result "1/2-1/2"]
[ECO "C11"]
[WhiteElo "2454"]
[BlackElo "2600"]
[Annotator "TA"]
[PlyCount "61"]
[EventDate "2024.10.11"]
[EventType "team-tourn"]
[EventCountry "ESP"]
[SourceTitle "playchess.com"]
[Source "ChessBase"]
[SourceQuality "1"]
[WhiteTeam "Solvay"]
[BlackTeam "Casablanca"]
[TimeControl "5400+30"]

{[%evp 14,61,32,32,21,15,9,0,20,8,0,5,0,0,16,7,9,11,9,13,21,14,16,25,24,16,22,0,1,0,12,0,0,0,0,0,0,0,0,0,0,0,0,0,0,0,0,0,0,0]} 1. e4 {[%emt 0:00:04]} e6 {[%emt 0:00:15]} 2. d4 {[%emt 0:00:06]} d5 {[%emt 0:00:06]} 3. Nc3 {[%emt 0:00:03]} Nf6 {[%emt 0:00:12]} 4. Bg5 {[%emt 0:02:59]} dxe4 {[%emt 0:00:26]} 5. Nxe4 {[%emt 0:00:02]} Be7 {[%emt 0:00:21]} 6. Bxf6 {[%emt 0:00:07]} gxf6 {[%emt 0:00:12]} 7. Nf3 {[%emt 0:00:05]} f5 {[%emt 0:00:15]} 8. Nc3 {[%emt 0:00:04]} a6 {[%emt 0:00:20]} 9. g3 {[%emt 0:00:16]} b5 {[%emt 0:00:30]} 10. Bg2 {[%emt 0:00:02] [#] Ne5 would now be deadly.} Bb7 {[%emt 0:00:06]} 11. O-O {[%emt 0:00:06][%cal Od4d5,Be1g1,Bg1g2,Bg2f3,Bf3e3][%mdl 32] White wants to play d5!} O-O {[%emt 0:00:44]} 12. Ne5 {[%emt 0:00:05]} Bxg2 {[%emt 0:00:24]} 13. Kxg2 {[%emt 0:00:02]} b4 {[%emt 0:00:08]} 14. Na4 {[%emt 0:00:04]} Qd5+ {[%emt 0:00:27]} 15. Qf3 {[%emt 0:00:08]} Qxf3+ {[%emt 0:00:30]} 16. Kxf3 {[%emt 0:00:09]} Bf6 {[%emt 0:00:33]} 17. Ke3 {[%emt 0:00:08]} Bxe5 {[%emt 0:00:55]} 18. dxe5 {[%emt 0:00:03]} Nd7 {[%emt 0:00:13]} 19. f4 {[%emt 0:00:06]} Nb6 {[%emt 0:00:10] The position is equal.} 20. Nxb6 {[%emt 0:00:06]} cxb6 $11 {[%emt 0:00:03][%mdl 4096] Endgame. KRR-KRR} 21. a3 {[%emt 0:37:59]} Rfc8 {[%emt 0:01:33]} 22. Rf2 {[%emt 0:03:27]} ({But not} 22. axb4 Rxc2 23. Rf2 Rc4 $17) 22... bxa3 {[%emt 0:04:12]} 23. Rxa3 {[%emt 0:00:48]} b5 {[%emt 0:00:35]} 24. c3 {[%emt 0:19:53]} Rc4 {[%emt 0:18:46]} 25. Rd2 {[%emt 0:00:44]} Re4+ {[%emt 0:11:21]} 26. Kf2 {[%emt 0:00:08]} b4 {[%emt 0:00:23]} 27. cxb4 {[%emt 0:00:38]} Rxb4 {[%emt 0:00:06]} 28. Ra5 {[%emt 0:02:24]} Rab8 {[%emt 0:06:38]} 29. Rxa6 {[%emt 0:00:10]} Rxb2 {[%emt 0:00:05]} 30. Rad6 {[%emt 0:01:24]} Rxd2+ {[%emt 0:00:07]} 31. Rxd2 {[%emt 0:00:02] An even fight not without its subleties.   Weighted Error Value: White=0.02 (flawless) /Black=0.01 (flawless) .  OK:         	White=7     	Black=16     Best:        	---       	Black=1} 1/2-1/2

[Event "ESP-ch Teams Honor 2024"]
[Site "Melilla"]
[Date "2024.10.15"]
[Round "4.11"]
[White "Gines Esteo, Pedro Antonio"]
[Black "Javakhishvili, Lela"]
[Result "1-0"]
[ECO "D35"]
[WhiteElo "2477"]
[BlackElo "2425"]
[Annotator "RC"]
[PlyCount "89"]
[EventDate "2024.10.11"]
[EventType "team-tourn"]
[EventCountry "ESP"]
[SourceTitle "playchess.com"]
[Source "ChessBase"]
[SourceQuality "1"]
[WhiteTeam "Casablanca"]
[BlackTeam "Solvay"]
[TimeControl "5400+30"]

1. c4 {[%emt 0:00:19]} e6 {[%emt 0:00:35]} 2. Nc3 {[%emt 0:00:17]} d5 {[%emt 0:00:39]} 3. d4 {[%emt 0:00:12]} Nf6 {[%emt 0:00:29]} 4. cxd5 {[%emt 0:00:19]} exd5 {[%emt 0:00:05]} 5. Bg5 {[%emt 0:00:08]} Be7 {[%emt 0:00:22]} 6. e3 {[%emt 0:00:11]} O-O {[%emt 0:00:38]} 7. Bd3 {[%emt 0:02:03]} h6 {[%emt 0:00:08]} 8. Bh4 {[%emt 0:02:04]} Re8 {[%emt 0:00:21]} 9. Nge2 {[%emt 0:04:02]} c6 {[%emt 0:00:32]} 10. O-O {[%emt 0:00:33]} a5 {[%emt 0:00:15]} 11. Rc1 {[%emt 0:01:44]} b5 {[%emt 0:01:23]} 12. a4 {[%emt 0:24:45]} bxa4 {[%emt 0:22:32]} 13. Nxa4 {[%emt 0:01:37]} Ne4 {[%emt 0:03:12]} 14. Bxe7 {[%emt 0:02:27]} Rxe7 {[%emt 0:00:06]} 15. Bxe4 {[%emt 0:26:06]} Rxe4 {[%emt 0:00:35]} 16. Nc5 {[%emt 0:04:26]} Re7 {[%emt 0:00:24]} 17. Nf4 {[%emt 0:00:40]} Na6 {[%emt 0:04:55]} 18. Nfd3 {[%emt 0:03:47]} Nxc5 {[%emt 0:02:22]} 19. Nxc5 {[%emt 0:00:05]} Rea7 {[%emt 0:03:38]} 20. b3 {[%emt 0:05:40]} Qg5 {[%emt 0:00:49]} 21. Qf3 {[%emt 0:00:55]} Bg4 {[%emt 0:02:46]} 22. Qg3 {[%emt 0:00:20]} Be2 {[%emt 0:00:25]} 23. Rfe1 {[%emt 0:02:38]} Bb5 {[%emt 0:01:23]} 24. Rc2 {[%emt 0:01:37]} Qf6 {[%emt 0:11:39]} 25. Ra2 {[%emt 0:02:17]} h5 {[%emt 0:02:34]} 26. h4 {[%emt 0:00:28]} Kh7 {[%emt 0:00:37]} 27. Kh2 {[%emt 0:00:34]} Rg8 {[%emt 0:01:56]} 28. Qf4 {[%emt 0:00:55]} Qxf4+ {[%emt 0:06:11]} 29. exf4 {[%emt 0:00:08]} Kg6 {[%emt 0:00:38]} 30. Re5 {[%emt 0:00:34]} f6 {[%emt 0:03:22]} 31. f5+ {[%emt 0:01:07]} Kf7 {[%emt 0:00:20]} 32. Re6 {[%emt 0:00:44]} g6 {[%emt 0:02:56]} 33. fxg6+ {[%emt 0:00:27]} Rxg6 {[%emt 0:00:03]} 34. f3 {[%emt 0:00:15]} Rg8 {[%emt 0:05:00]} 35. Re1 {[%emt 0:00:47]} Kg6 {[%emt 0:00:57]} 36. g4 {[%emt 0:03:12]} Rh8 {[%emt 0:05:18]} 37. Kg3 {[%emt 0:00:59]} Rah7 {[%emt 0:00:33]} 38. Ne6 {[%emt 0:01:41]} hxg4 {[%emt 0:00:55]} 39. Nf4+ {[%emt 0:00:10]} Kh6 {[%emt 0:03:44]} 40. fxg4 {[%emt 0:00:15]} Ra7 {[%emt 0:02:55]} 41. Re6 {[%emt 0:00:48]} Rf8 {[%emt 0:03:07]} 42. g5+ {[%emt 0:01:29]} Kh7 {[%emt 0:00:01]} 43. g6+ {[%emt 0:02:25]} Kh6 {[%emt 0:00:02]} 44. h5 {[%emt 0:00:10]} Kg5 {[%emt 0:00:16]} 45. h6 {[%emt 0:00:28]} 1-0

[Event "ESP-ch Teams Honor 2024"]
[Site "Melilla"]
[Date "2024.10.15"]
[Round "4.12"]
[White "Tejedor Fuente, Enrique"]
[Black "Vega Gutierrez, Sabrina"]
[Result "0-1"]
[ECO "B33"]
[WhiteElo "2400"]
[BlackElo "2392"]
[Annotator "RC"]
[PlyCount "56"]
[EventDate "2024.10.11"]
[EventType "team-tourn"]
[EventCountry "ESP"]
[SourceTitle "playchess.com"]
[Source "ChessBase"]
[SourceQuality "1"]
[WhiteTeam "Solvay"]
[BlackTeam "Casablanca"]
[TimeControl "5400+30"]

1. e4 {[%emt 0:00:01]} c5 {[%emt 0:00:15]} 2. Nf3 {[%emt 0:00:03]} Nc6 {[%emt 0:00:09]} 3. d4 {[%emt 0:00:01]} cxd4 {[%emt 0:00:11]} 4. Nxd4 {[%emt 0:00:02]} Nf6 {[%emt 0:00:57]} 5. Nc3 {[%emt 0:00:03]} e5 {[%emt 0:00:17]} 6. Ndb5 {[%emt 0:00:12]} d6 {[%emt 0:00:07]} 7. Bg5 {[%emt 0:00:16]} a6 {[%emt 0:00:14]} 8. Bxf6 {[%emt 0:00:54]} gxf6 {[%emt 0:00:09]} 9. Na3 {[%emt 0:00:02]} b5 {[%emt 0:00:38]} 10. Nd5 {[%emt 0:00:02]} Bg7 {[%emt 0:00:18]} 11. g3 {[%emt 0:00:28]} Ne7 {[%emt 0:00:11]} 12. Bg2 {[%emt 0:02:55]} Nxd5 {[%emt 0:02:15]} 13. Qxd5 {[%emt 0:00:16]} Be6 {[%emt 0:03:15]} 14. Qd2 {[%emt 0:02:05]} h5 {[%emt 0:17:14]} 15. h4 {[%emt 0:10:24]} Bh6 {[%emt 0:17:52]} 16. Qb4 {[%emt 0:01:01]} Rb8 {[%emt 0:01:19]} 17. O-O {[%emt 0:00:28]} a5 {[%emt 0:01:52]} 18. Qe1 {[%emt 0:00:06]} b4 {[%emt 0:04:32]} 19. Nb1 {[%emt 0:00:02]} d5 {[%emt 0:01:36]} 20. exd5 {[%emt 0:08:00]} Bxd5 {[%emt 0:00:20]} 21. Qe2 {[%emt 0:10:19]} Bxg2 {[%emt 0:01:22]} 22. Kxg2 {[%emt 0:00:03]} Qd4 {[%emt 0:03:46]} 23. c3 {[%emt 0:01:24]} Qg4 {[%emt 0:00:45]} 24. Qa6 {[%emt 0:00:57]} Rg8 {[%emt 0:05:04]} 25. Qc6+ {[%emt 0:09:30]} Ke7 {[%emt 0:05:37]} 26. Qc5+ {[%emt 0:12:21]} Ke6 {[%emt 0:01:44]} 27. Qxa5 {[%emt 0:00:29]} Qe2 {[%emt 0:00:49]} 28. Kh2 {[%emt 0:18:15]} Rxg3 {[%emt 0:04:27]} 0-1

[Event "ESP-ch Teams Honor 2024"]
[Site "Melilla"]
[Date "2024.10.15"]
[Round "4.13"]
[White "Pranav, V."]
[Black "Tabatabaei, M. Amin"]
[Result "0-1"]
[ECO "A01"]
[WhiteElo "2609"]
[BlackElo "2702"]
[Annotator "TA"]
[PlyCount "80"]
[EventDate "2024.10.11"]
[EventType "team-tourn"]
[EventCountry "ESP"]
[SourceTitle "playchess.com"]
[Source "ChessBase"]
[SourceQuality "1"]
[WhiteTeam "Benalmadena"]
[BlackTeam "Andreu"]
[TimeControl "5400+30"]

{[%evp 20,80,7,0,8,0,0,0,44,0,9,0,26,10,22,8,13,14,12,8,11,14,18,8,0,0,7,15,8,12,20,0,0,-4,0,-63,-77,-70,-93,-72,-80,-166,-167,-162,-164,-152,-102,-114,-77,-104,-51,-112,-119,-367,-363,-614,-621,-635,-628,-691,-612,-29996,727]} 1. b3 {[%emt 0:00:54]} d5 {[%emt 0:04:06]} 2. Bb2 {[%emt 0:00:08]} Bf5 {[%emt 0:00:16]} 3. Nf3 {[%emt 0:00:17]} e6 {[%emt 0:00:06]} 4. g3 {[%emt 0:00:22]} Nf6 {[%emt 0:00:08]} 5. Bg2 {[%emt 0:00:07]} h6 {[%emt 0:00:39]} 6. O-O {[%emt 0:00:12]} Be7 {[%emt 0:00:03]} 7. d3 {[%emt 0:00:08]} O-O {[%emt 0:00:14]} 8. Nbd2 {[%emt 0:00:07]} c6 {[%emt 0:01:16]} 9. Re1 {[%emt 0:00:08]} a5 {[%emt 0:00:14]} 10. a3 {[%emt 0:00:37]} Bh7 {[%emt 0:00:28]} 11. e4 {[%emt 0:00:10]} Nbd7 {[%emt 0:01:43]} 12. Qe2 {[%emt 0:00:11]} Qb6 {[%emt 0:02:17]} 13. a4 {[%emt 0:03:02]} Kh8 {[%emt 0:04:37] Die Stellung ist ausgeglichen.} 14. Kh1 {[%emt 0:27:24]} Rad8 {[%emt 0:04:19]} 15. e5 {[%emt 0:08:07]} Ng8 {[%emt 0:00:38][%cal Bf6g8,Bg8e7,Be7f5,Bf5d4][%mdl 32]} 16. Rf1 {[%emt 0:06:34]} Rde8 {[%emt 0:02:18]} 17. Ng1 {[%emt 0:03:55]} Bc5 {[%emt 0:03:30]} 18. f4 {[%emt 0:01:27]} Ne7 {[%emt 0:00:41]} 19. Ngf3 {[%emt 0:01:58] Droht stark d4.} Nf5 {[%emt 0:22:25]} 20. g4 {[%emt 0:11:39]} Nd4 {[%emt 0:06:40]} 21. Nxd4 {[%emt 0:13:51]} Bxd4 {[%emt 0:00:36]} 22. c3 {[%emt 0:00:26]} Bc5 {[%emt 0:00:02]} 23. d4 {[%emt 0:01:16]} Be7 {[%emt 0:00:02]} 24. f5 {[%emt 0:01:46]} c5 {[%emt 0:00:16] [#]} 25. f6 $1 {[%emt 0:06:16]} gxf6 {[%emt 0:00:30]} 26. exf6 {[%emt 0:00:05]} Bd6 {[%emt 0:00:59] ...Rg8 wäre nun fies.} (26... Nxf6 $2 27. dxc5 Qxc5 28. Qe5 $18) (26... Bxf6 $2 27. Rxf6 Nxf6 28. Qe5 $18) 27. Nf3 {[%emt 0:05:58]} (27. dxc5 $11 Nxc5 28. Ba3) 27... Rg8 $1 $15 {[%emt 0:07:05]} (27... Nxf6 $2 28. dxc5 Qxc5 (28... Qxb3 $2 29. cxd6 Ne4 30. Ba3 $18) (28... Bxc5 $2 29. Qe5 $18) 29. c4 $18) (27... Qxb3 28. Bc1 Qxc3 (28... Nxf6 $2 29. dxc5 Be7 30. Qe5 $18) 29. Bxh6 $11) 28. Bc1 {[%emt 0:00:24]} Bf8 {[%emt 0:05:19]} (28... Nxf6 $2 29. Ne5 $18) (28... Rxg4 29. Bxh6 Reg8 (29... Qxb3 $2 30. Nd2 $18) (29... Nxf6 $2 30. Ne5 $18) 30. Bg7+ R8xg7 31. fxg7+ Rxg7 32. b4 axb4 (32... cxb4 33. cxb4 axb4 34. a5 $17) 33. a5 $17) 29. h3 {[%emt 0:02:00]} Qxb3 {[%emt 0:01:59]} 30. dxc5 {[%emt 0:01:04]} (30. Qe1 $17 {ist eine bessere Verteidigung.}) 30... Qxc3 $19 {[%emt 0:04:05]} 31. Bd2 {[%emt 0:00:14]} Qxc5 {[%emt 0:06:31]} (31... Qxf6 32. Ng5 Bf5 33. gxf5 Rxg5 34. Bxg5 Qxg5 35. Qb5 $14) 32. Rac1 {[%emt 0:00:16]} Qb6 {[%emt 0:00:53][%cal Oh7e4]} 33. Be3 {[%emt 0:01:13]} Qd8 {[%emt 0:02:59][%cal Oe6e5]} 34. Qb5 {[%emt 0:00:48]} b6 {[%cal Oh7e4]} (34... Nxf6 $2 {geht unter.} 35. Ne5 Bg6 36. Bb6 $18 (36. Qxb7 Bg7 $14) (36. Rxf6 $2 Qxf6 37. Nxg6+ Qxg6 $19)) 35. Nd4 {[%emt 0:00:24]} (35. Rc6 $15) 35... Ne5 $17 {[%emt 0:04:29]} (35... Nxf6 $2 {ist das falsche Schlagen.} 36. Nc6 (36. Rxf6 Qxf6 37. Qxe8 Ba3 $11) 36... Qd6 37. Rxf6 $18) 36. Rfd1 {[%emt 0:02:52] Verhindert Bd3. Danach ist Weiß chancenlos.} (36. Nc6 $17 Nxc6 37. Qxc6) 36... Bc5 $19 {[%emt 0:01:43][%cal Oe5g4] Und jetzt ...Nxg4! wäre schön.} 37. Bxh6 $2 {[%emt 0:01:59]} (37. Qe2) 37... Qxf6 {[%emt 0:00:09]} 38. g5 {[%emt 0:00:13]} Qf2 {[%emt 0:04:00]} 39. Nc6 {[%emt 0:00:09] [#]} Ng4 {[%emt 0:01:26][%cal Of2g1][%mdl 512] ( -> ...Qg1+!)} 40. Rf1 {[%emt 0:00:51] [#]} (40. Qf1 Nxh6) 40... Qg1+ $3 {[%emt 0:00:31][%mdl 33280] Gewichteter Fehlerwert: Weiß=0.55/Schwarz=0.10 (sehr präzise) .  Verlustzug:     	Weiß=1     	---        Fehler:       	Weiß=4     	---        Ungenau:       	Weiß=1     	Schwarz=3     OK:         	Weiß=12    	Schwarz=13    Bester:       	Weiß=1     	Schwarz=3     Stark:        	---       	Schwarz=1    . Zeitüberschreitung!?} 0-1

[Event "ESP-ch Teams Honor 2024"]
[Site "Melilla"]
[Date "2024.10.15"]
[Round "4.14"]
[White "Van Foreest, Jorden"]
[Black "Ter-Sahakyan, Samvel"]
[Result "1/2-1/2"]
[ECO "B90"]
[WhiteElo "2697"]
[BlackElo "2609"]
[Annotator "TA"]
[PlyCount "113"]
[EventDate "2024.10.11"]
[EventType "team-tourn"]
[EventCountry "ESP"]
[SourceTitle "playchess.com"]
[Source "ChessBase"]
[SourceQuality "1"]
[WhiteTeam "Andreu"]
[BlackTeam "Benalmadena"]
[TimeControl "5400+30"]

{[%evp 25,113,0,0,-5,0,-8,0,0,0,5,22,17,25,33,10,16,24,8,102,106,102,77,73,70,93,90,97,91,97,94,128,9,63,31,29,33,32,30,29,24,28,28,31,28,15,15,50,57,41,0,0,3,0,0,0,0,80,99,87,143,100,110,146,0,0,0,0,0,0,0,0,0,0,0,0,0,0,0,0,0,0,0,0,0,0,0,0,0,0,0]} 1. e4 {[%emt 0:00:23]} c5 {[%emt 0:00:08]} 2. Nf3 {[%emt 0:00:05]} d6 {[%emt 0:00:04]} 3. d4 {[%emt 0:00:12]} cxd4 {[%emt 0:00:05]} 4. Nxd4 {[%emt 0:00:07]} Nf6 {[%emt 0:00:04]} 5. Nc3 {[%emt 0:00:13]} a6 {[%emt 0:00:06]} 6. Bd3 {[%emt 0:00:13]} g6 {[%emt 0:00:35]} 7. Be2 {[%emt 0:00:37] 7.Be2 is the recent fashion. B90: Sicilian Najdorf: Unusual White 6th moves, 6 Be3 Ng4 and 6 Be3 e5.} Bg7 {[%emt 0:03:06]} 8. Be3 {[%emt 0:00:19]} Nc6 {[%emt 0:00:21]} 9. Qd2 {[%emt 0:00:39]} O-O {[%emt 0:06:04]} 10. h4 {[%emt 0:03:28]} d5 {[%emt 0:10:21]} 11. exd5 {[%emt 0:02:44]} Nxd5 $146 {[%emt 0:02:06]} ({Predecessor:} 11... Nb4 12. h5 Nbxd5 13. Nxd5 Qxd5 14. Bf3 Qc4 15. Qe2 Qc7 16. hxg6 fxg6 17. g3 e5 18. Nb3 e4 {0-1 Savkic,I (1989)-Antonijevic,Z (2042) Belgrade-chT Quality 2021 (10.4)}) 12. Nxd5 {[%emt 0:00:08]} Qxd5 {[%emt 0:02:17]} 13. Bf3 {[%emt 0:00:46]} Qe5 {[%emt 0:02:07]} 14. c3 {[%emt 0:02:32]} Nxd4 {[%emt 0:25:58]} 15. cxd4 {[%emt 0:00:26]} Qd6 {[%emt 0:00:05]} 16. h5 {[%emt 0:00:05]} Rd8 {[%emt 0:01:52]} 17. Rd1 {[%emt 0:04:15]} Bf5 {[%emt 0:04:28]} 18. h6 {[%emt 0:07:43]} Bf6 {[%emt 0:02:54]} 19. O-O {[%emt 0:19:55]} Qd7 {[%emt 0:03:15]} 20. Qe2 {[%emt 0:11:41]} Qb5 {[%emt 0:13:11]} 21. Rfe1 {[%emt 0:02:32]} Rd6 {[%emt 0:09:43]} (21... Qxe2 $11 22. Rxe2 e5 23. Bxb7 Rab8 24. Bxa6 exd4) 22. g4 $16 {[%emt 0:02:54]} Bd7 {[%emt 0:03:06]} 23. d5 {[%emt 0:09:52]} Qxe2 {[%emt 0:06:19]} 24. Rxe2 {[%emt 0:00:18]} Rc8 {[%emt 0:00:11]} 25. g5 {[%emt 0:01:38]} Be5 {[%emt 0:00:57] [#]} 26. Bd2 $1 {[%emt 0:02:46]} f6 {[%emt 0:01:54]} 27. Bb4 {[%emt 0:00:17]} Kf7 {[%emt 0:01:56] [#]} 28. Rde1 {[%emt 0:05:02]} (28. gxf6 $1 $16 Bxf6 29. Bxd6 exd6 30. Kg2) 28... Rc4 {[%emt 0:00:39]} (28... Rb6 $11 29. Ba3 Bf5) 29. Bc3 {[%emt 0:00:28]} Bg4 {[%emt 0:00:36]} 30. Bxe5 {[%emt 0:08:47]} Bxf3 {[%emt 0:00:05]} 31. Bxd6 {[%emt 0:00:15]} Bxe2 {[%emt 0:00:04]} 32. Rxe2 {[%emt 0:02:50]} exd6 {[%emt 0:00:01]} 33. Re6 {[%emt 0:00:05]} Rg4+ {[%emt 0:00:48]} 34. Kf1 {[%emt 0:00:00]} Rxg5 {[%emt 0:00:08]} 35. Rxd6 {[%emt 0:00:03]} Re5 {[%emt 0:00:55]} 36. Rb6 {[%emt 0:00:24]} Re7 $1 {[%emt 0:00:18]} 37. Kg2 {[%emt 0:01:42]} g5 $1 {[%emt 0:00:33]} 38. Kf3 {[%emt 0:00:03]} f5 {[%emt 0:00:14]} 39. b4 {[%emt 0:00:25]} Rd7 {[%emt 0:01:14]} 40. a4 {[%emt 0:00:17]} Rxd5 {[%emt 0:01:05]} (40... a5 $1 $11 {keeps the balance.}) 41. Rxb7+ $16 {[%emt 0:00:05]} Kg6 {[%emt 0:00:04]} 42. Rb6+ {[%emt 0:00:04]} Kh5 {[%emt 0:00:03]} 43. Rxa6 {[%emt 0:00:04]} Rd3+ {[%emt 0:01:21]} 44. Kg2 {[%emt 0:00:25]} (44. Ke2 $16 Rb3 45. b5) 44... f4 {[%emt 0:00:34]} 45. Rc6 {[%emt 0:02:47]} Ra3 {[%emt 0:00:28]} 46. a5 {[%emt 0:00:04]} Ra4 {[%emt 0:00:23]} 47. Rc2 {[%emt 0:05:32]} Rxb4 {[%emt 0:00:16]} 48. Ra2 {[%emt 0:00:03]} Rb7 {[%emt 0:00:16]} 49. a6 {[%emt 0:00:02]} Ra7 {[%emt 0:00:05]} 50. f3 {[%emt 0:01:22]} Kxh6 {[%emt 0:00:08]} 51. Ra5 {[%emt 0:00:04]} Kg6 {[%emt 0:00:13]} 52. Kh2 {[%emt 0:00:34]} h5 {[%emt 0:00:25]} 53. Kh3 {[%emt 0:00:00]} Kf6 {[%emt 0:00:35]} 54. Kg2 {[%emt 0:00:00]} Kg6 {[%emt 0:00:38]} 55. Kh3 {[%emt 0:00:00]} Kh6 {[%emt 0:00:22]} 56. Ra4 {[%emt 0:00:20]} Kg7 {[%emt 0:00:27]} 57. Ra5 {[%emt 0:00:06]} 1/2-1/2